fUSD/lending_fUSD_20241002
["ID","MTS","AMOUNT","RATE_DAILY","PERIOD"]
[339716289,1727889074141,-931.94,0.00017808,2]
[339716290,1727889074150,-500.0,0.00017808,2]
[339716291,1727889074159,-500.0,0.00017808,2]
[339716292,1727889074169,-500.0,0.00017808,2]
[339716293,1727889074179,-500.0,0.00017808,2]
[339716294,1727889074188,-426.46924599,0.00017808,2]
[339716295,1727889074197,-500.0,0.00017808,2]
[339716296,1727889074206,-500.0,0.00017808,2]
[339716297,1727889074216,-573.66159422,0.00017808,2]
[339716298,1727889074225,-1113.85,0.00017808,2]
[339716299,1727889074235,-500.0,0.00017808,2]
[339716300,1727889074245,-163.85640159,0.00017808,2]
[339716301,1727889074254,-1113.85,0.00017808,2]
[339716302,1727889074263,-500.0,0.00017808,2]
[339716303,1727889074273,-500.0,0.00017808,2]
[339716304,1727889074284,-842.89,0.00017808,2]
[339716305,1727889074303,-500.0,0.00017808,2]
[339716306,1727889074312,-500.0,0.00017808,2]
[339716307,1727889074322,-842.89,0.00017808,2]
[339716308,1727889074332,-500.0,0.00017808,2]
[339716309,1727889074342,-278.20043618,0.00017808,2]
[339716310,1727889074352,-1113.85,0.00017808,2]
[339716311,1727889074361,-842.89,0.00017808,2]
[339716312,1727889074371,-500.0,0.00017808,2]
[339716313,1727889074380,-227.80688738,0.00017808,2]
[339716314,1727889074390,-500.0,0.00017808,2]
[339716315,1727889074400,-842.89,0.00017808,2]
[339716316,1727889074409,-1113.85,0.00017808,2]
[339716317,1727889074419,-500.0,0.00017808,2]
[339716318,1727889074428,-500.0,0.00017808,2]
[339716319,1727889074438,-1113.85,0.00017808,2]
[339716320,1727889074447,-500.0,0.00017808,2]
[339716321,1727889074457,-1113.85,0.00017808,2]
[339716322,1727889074466,-500.0,0.00017808,2]
[339716323,1727889074476,-4159.81,0.00017808,2]
[339716324,1727889074485,-1113.85,0.00017808,2]
[339716325,1727889074495,-500.0,0.00017808,2]
[339716326,1727889074507,-4159.81,0.00017808,2]
[339716327,1727889074517,-1113.85,0.00017808,2]
[339716328,1727889074526,-500.0,0.00017808,2]
[339716329,1727889074538,-1113.85,0.00017808,2]
[339716330,1727889074549,-4159.81,0.00017808,2]
[339716331,1727889074559,-500.0,0.00017808,2]
[339716332,1727889074571,-1113.85,0.00017808,2]
[339716333,1727889074582,-4159.81,0.00017808,2]
[339716334,1727889074591,-500.0,0.00017808,2]
[339716335,1727889074601,-1114.03375711,0.00017808,2]
[339716336,1727889074611,-4159.81,0.00017808,2]
[339716337,1727889074621,-806.64,0.00017808,2]
[339716338,1727889074631,-195.18471885,0.00017808,2]
[339716339,1727889074640,-4159.81,0.00017808,2]
[339716340,1727889074650,-806.64,0.00017808,2]
[339716341,1727889074660,-500.0,0.00017808,2]
[339716342,1727889074670,-4159.81,0.00017808,2]
[339716343,1727889074679,-806.64,0.00017808,2]
[339716344,1727889074689,-500.0,0.00017808,2]
[339716345,1727889074699,-4159.81,0.00017808,2]
[339716346,1727889074709,-500.0,0.00017808,2]
[339716347,1727889074718,-806.64,0.00017808,2]
[339716348,1727889074728,-500.0,0.00017808,2]
[339716349,1727889074737,-500.0,0.00017808,2]
[339716350,1727889074748,-4159.81,0.00017808,2]
[339716351,1727889074758,-806.64,0.00017808,2]
[339716352,1727889074768,-500.0,0.00017808,2]
[339716353,1727889074777,-4159.81,0.00017808,2]
[339716354,1727889074788,-806.64,0.00017808,2]
[339716355,1727889074798,-500.0,0.00017808,2]
[339716356,1727889074808,-500.0,0.00017808,2]
[339716357,1727889074817,-500.0,0.00017808,2]
[339716358,1727889074827,-4159.81,0.00017808,2]
[339716359,1727889074836,-806.64,0.00017808,2]
[339716360,1727889074846,-500.0,0.00017808,2]
[339716361,1727889074856,-4159.81,0.00017808,2]
[339716362,1727889074866,-395.38459692,0.00017808,2]
[339716363,1727889074876,-500.0,0.00017808,2]
[339716364,1727889074886,-806.64,0.00017808,2]
[339716365,1727889074896,-4159.81,0.00017808,2]
[339716366,1727889074905,-500.0,0.00017808,2]
[339716367,1727889074915,-500.0,0.00017808,2]
[339716368,1727889074924,-806.64,0.00017808,2]
[339716369,1727889074933,-4159.81,0.00017808,2]
[339716370,1727889074943,-500.0,0.00017808,2]
[339716371,1727889074953,-806.64,0.00017808,2]
[339716372,1727889074963,-500.0,0.00017808,2]
[339716373,1727889074972,-4159.81,0.00017808,2]
[339716374,1727889074982,-500.0,0.00017808,2]
[339716375,1727889074992,-500.0,0.00017808,2]
[339716376,1727889075002,-4159.81,0.00017808,2]
[339716377,1727889075012,-806.64,0.00017808,2]
[339716378,1727889075022,-500.0,0.00017808,2]
[339716379,1727889075032,-500.0,0.00017808,2]
[339716380,1727889075045,-806.64,0.00017808,2]
[339716381,1727889075054,-500.0,0.00017808,2]
[339716382,1727889075063,-806.64,0.00017808,2]
[339716383,1727889075159,-500.0,0.00017808,2]
[339716384,1727889075169,-806.64,0.00017808,2]
[339716385,1727889075178,-500.0,0.00017808,2]
[339716386,1727889075187,-806.64,0.00017808,2]
[339716387,1727889075196,-569.79,0.00017808,2]
[339716388,1727889075206,-500.0,0.00017808,2]
[339716389,1727889075215,-500.0,0.00017808,2]
[339716390,1727889075225,-806.64,0.00017808,2]
[339716391,1727889075234,-500.0,0.00017808,2]
[339716392,1727889075244,-569.79,0.00017808,2]
[339716393,1727889075253,-806.64,0.00017808,2]
[339716394,1727889075263,-500.0,0.00017808,2]
[339716395,1727889075272,-806.64,0.00017808,2]
[339716396,1727889075281,-569.79,0.00017808,2]
[339716397,1727889075292,-500.0,0.00017808,2]
[339716398,1727889075301,-806.64,0.00017808,2]
[339716399,1727889075310,-500.0,0.00017808,2]
[339716400,1727889075319,-569.79,0.00017808,2]
[339716401,1727889075328,-500.0,0.00017808,2]
[339716402,1727889075338,-867.74,0.00017808,2]
[339716403,1727889075347,-806.64,0.00017808,2]
[339716404,1727889075357,-806.64,0.00017808,2]
[339716405,1727889075366,-560.71342059,0.00017808,2]
[339716406,1727889075375,-806.64,0.00017808,2]
[339716407,1727889075385,-708.55,0.00017808,2]
[339716408,1727889075393,-500.0,0.00017808,2]
[339716409,1727889075403,-806.64,0.00017808,2]
[339716410,1727889075412,-708.55,0.00017808,2]
[339716411,1727889075421,-806.82966662,0.00017808,2]
[339716412,1727889075429,-1621.96,0.00017808,2]
[339716413,1727889075439,-708.55,0.00017808,2]
[339716414,1727889075449,-500.0,0.00017808,2]
[339716415,1727889075458,-569.79,0.00017808,2]
[339716416,1727889075467,-792.99,0.00017808,2]
[339716417,1727889075477,-1621.96,0.00017808,2]
[339716418,1727889075487,-708.55,0.00017808,2]
[339716419,1727889075496,-569.79,0.00017808,2]
[339716420,1727889075508,-500.0,0.00017808,2]
[339716421,1727889075518,-792.99,0.00017808,2]
[339716422,1727889075527,-500.0,0.00017808,2]
[339716423,1727889075538,-708.55,0.00017808,2]
[339716424,1727889075548,-569.79,0.00017808,2]
[339716425,1727889075558,-1621.96,0.00017808,2]
[339716426,1727889075568,-500.0,0.00017808,2]
[339716427,1727889075578,-792.99,0.00017808,2]
[339716428,1727889075588,-708.55,0.00017808,2]
[339716429,1727889075597,-1621.96,0.00017808,2]
[339716430,1727889075606,-569.79,0.00017808,2]
[339716431,1727889075615,-792.99,0.00017808,2]
[339716432,1727889075625,-500.0,0.00017808,2]
[339716433,1727889075634,-500.0,0.00017808,2]
[339716434,1727889075644,-708.55,0.00017808,2]
[339716435,1727889075654,-569.79,0.00017808,2]
[339716436,1727889075663,-1621.96,0.00017808,2]
[339716437,1727889075672,-792.99,0.00017808,2]
[339716438,1727889075681,-500.0,0.00017808,2]
[339716439,1727889075690,-500.0,0.00017808,2]
[339716440,1727889075700,-708.55,0.00017808,2]
[339716441,1727889075710,-569.79,0.00017808,2]
[339716442,1727889075719,-500.0,0.00017808,2]
[339716443,1727889075728,-792.99,0.00017808,2]
[339716444,1727889075738,-1621.96,0.00017808,2]
[339716445,1727889075747,-500.0,0.00017808,2]
[339716446,1727889075757,-500.0,0.00017808,2]
[339716447,1727889075767,-708.55,0.00017808,2]
[339716448,1727889075777,-500.0,0.00017808,2]
[339716449,1727889075786,-792.99,0.00017808,2]
[339716450,1727889075804,-500.0,0.00017808,2]
[339716451,1727889075813,-500.0,0.00017808,2]
[339716452,1727889075823,-708.55,0.00017808,2]
[339716453,1727889075832,-500.0,0.00017808,2]
[339716454,1727889075842,-500.0,0.00017808,2]
[339716455,1727889075851,-500.0,0.00017808,2]
[339716456,1727889075861,-500.0,0.00017808,2]
[339716457,1727889075870,-218.62103143,0.00017808,2]
[339716458,1727889075880,-708.55,0.00017808,2]
[339716459,1727889075890,-569.79,0.00017808,2]
[339716460,1727889075899,-792.99,0.00017808,2]
[339716461,1727889075909,-500.0,0.00017808,2]
[339716462,1727889075919,-708.55,0.00017808,2]
[339716463,1727889075929,-500.0,0.00017808,2]
[339716464,1727889075938,-569.79,0.00017808,2]
[339716465,1727889075949,-792.99,0.00017808,2]
[339716466,1727889075958,-500.0,0.00017808,2]
[339716467,1727889075969,-500.0,0.00017808,2]
[339716468,1727889075978,-708.55,0.00017808,2]
[339716469,1727889075989,-569.79,0.00017808,2]
[339716470,1727889075998,-792.99,0.00017808,2]
[339716471,1727889076008,-500.0,0.00017808,2]
[339716472,1727889076017,-500.0,0.00017808,2]
[339716473,1727889076027,-708.55,0.00017808,2]
[339716474,1727889076038,-569.79,0.00017808,2]
[339716475,1727889076047,-792.99,0.00017808,2]
[339716476,1727889076057,-500.0,0.00017808,2]
[339716477,1727889076066,-511.09,0.00017808,2]
[339716478,1727889076075,-708.55,0.00017808,2]
[339716479,1727889076084,-500.0,0.00017808,2]
[339716480,1727889076094,-569.79,0.00017808,2]
[339716481,1727889076104,-792.99,0.00017808,2]
[339716482,1727889076113,-708.55,0.00017808,2]
[339716483,1727889076122,-500.0,0.00017808,2]
[339716484,1727889076132,-792.99,0.00017808,2]
[339716485,1727889076141,-569.79,0.00017808,2]
[339716486,1727889076151,-3993.42,0.00017808,2]
[339716487,1727889076160,-708.55,0.00017808,2]
[339716488,1727889076170,-500.0,0.00017808,2]
[339716489,1727889076179,-569.79,0.00017808,2]
[339716490,1727889076188,-792.99,0.00017808,2]
[339716491,1727889076198,-3963.22605767,0.00017808,2]
[339716492,1727889078574,-30.19394233,0.00017808,2]
[339716493,1727889078584,-708.55,0.00017808,2]
[339716494,1727889078594,-500.0,0.00017808,2]
[339716495,1727889078603,-500.0,0.00017808,2]
[339716496,1727889078613,-569.79,0.00017808,2]
[339716497,1727889078623,-476.01862443,0.00017808,2]
[339716498,1727889078663,-316.97137557,0.00017808,2]
[339716499,1727889078673,-708.55,0.00017808,2]
[339716500,1727889078683,-500.0,0.00017808,2]
[339716501,1727889078693,-3993.42,0.00017808,2]
[339716502,1727889078703,-731.47582443,0.00017808,2]
[339716503,1727889079290,-1000.0,0.0001738,2]
[339716504,1727889079301,-502.42417557,0.00017808,2]
[339716505,1727889079311,-500.0,0.00017808,2]
[339716506,1727889079320,-544.66875481,0.00017808,2]
[339716507,1727889079333,-25.12124519,0.00017808,2]
[339716508,1727889079342,-792.99,0.00017808,2]
[339716509,1727889079351,-708.55,0.00017808,2]
[339716510,1727889079361,-3993.42,0.00017808,2]
[339716511,1727889079371,-500.0,0.00017808,2]
[339716512,1727889079380,-500.0,0.00017808,2]
[339716513,1727889079389,-761.42681739,0.00017808,2]
[339716515,1727889080186,-472.47318261,0.00017808,2]
[339716516,1727889080204,-390.06702595,0.00017808,2]
[339716517,1727889080219,-402.92297405,0.00017808,2]
[339716518,1727889080228,-569.79,0.00017808,2]
[339716519,1727889080238,-708.55,0.00017808,2]
[339716520,1727889080247,-500.0,0.00017808,2]
[339716521,1727889080257,-3993.42,0.00017808,2]
[339716522,1727889080266,-500.0,0.00017808,2]
[339716523,1727889080389,-1233.9,0.00017808,2]
[339716524,1727889080399,-792.99,0.00017808,2]
[339716525,1727889080410,-3993.42,0.00017808,2]
[339716526,1727889080420,-708.55,0.00017808,2]
[339716527,1727889080430,-1233.9,0.00017808,2]
[339716528,1727889080438,-569.79,0.00017808,2]
[339716529,1727889080448,-500.0,0.00017808,2]
[339716530,1727889080458,-792.99,0.00017808,2]
[339716531,1727889080467,-1233.9,0.00017808,2]
[339716532,1727889080476,-3993.42,0.00017808,2]
[339716533,1727889080486,-500.0,0.00017808,2]
[339716534,1727889080495,-708.55,0.00017808,2]
[339716535,1727889080507,-569.79,0.00017808,2]
[339716536,1727889080517,-3993.42,0.00017808,2]
[339716537,1727889080526,-1233.9,0.00017808,2]
[339716538,1727889080536,-708.63371925,0.00017808,2]
[339716539,1727889080549,-792.99,0.00017808,2]
[339716540,1727889080559,-500.0,0.00017808,2]
[339716541,1727889080569,-569.79,0.00017808,2]
[339716542,1727889080579,-3993.42,0.00017808,2]
[339716543,1727889080589,-1233.9,0.00017808,2]
[339716544,1727889080598,-792.99,0.00017808,2]
[339716545,1727889080608,-500.0,0.00017808,2]
[339716546,1727889080618,-569.95348329,0.00017808,2]
[339716547,1727889080627,-3993.42,0.00017808,2]
[339716548,1727889080637,-792.99,0.00017808,2]
[339716549,1727889080646,-500.0,0.00017808,2]
[339716550,1727889080655,-3993.42,0.00017808,2]
[339716551,1727889080664,-1233.9,0.00017808,2]
[339716552,1727889080674,-500.0,0.00017808,2]
[339716553,1727889080683,-792.99,0.00017808,2]
[339716554,1727889080692,-3993.42,0.00017808,2]
[339716555,1727889080701,-1233.9,0.00017808,2]
[339716556,1727889080710,-3993.42,0.00017808,2]
[339716557,1727889080719,-793.03160856,0.00017808,2]
[339716558,1727889080728,-1233.9,0.00017808,2]
[339716559,1727889080737,-500.0,0.00017808,2]
[339716560,1727889080747,-3993.42,0.00017808,2]
[339716561,1727889080756,-500.0,0.00017808,2]
[339716562,1727889080765,-1233.9,0.00017808,2]
[339716563,1727889080774,-1107.85821485,0.00017808,2]
[339716621,1727890176064,766.0,0.00021,60]
[339716626,1727890197549,-164.67,0.00010959,2]
[339716627,1727890197570,-200.0,0.00012,2]
[339716628,1727890197590,-191.0,0.00012,2]
[339716629,1727890197611,-291.23432343,0.000125,2]
[339716630,1727890197633,-2038.35982776,0.00012773,2]
[339716631,1727890197654,-150.0,0.00012869,2]
[339716632,1727890197675,-300.0,0.00012869,2]
[339716633,1727890197696,-4664.73584881,0.00012869,2]
[339716653,1727890232082,-250.0,0.00011,2]
[339716654,1727890232093,-982.79841512,0.0001287,2]
[339716655,1727890232104,-976.79690781,0.0001287,2]
[339716656,1727890232116,-1326.47409564,0.0001287,2]
[339716657,1727890232129,-651.51981103,0.0001287,2]
[339716658,1727890232141,-851.45896926,0.0001287,2]
[339716659,1727890232156,-5823.00804009,0.0001287,2]
[339716660,1727890232168,-704.70953894,0.0001287,2]
[339716661,1727890232180,-479.84771151,0.0001287,2]
[339716662,1727890232195,-36359.36961803,0.0001287,2]
[339716663,1727890232211,-520.41993916,0.0001287,2]
[339716664,1727890232285,-6697.7048344,0.0001287,2]
[339716665,1727890232297,-4869.87206032,0.0001287,2]
[339716666,1727890232308,-9712.2172811,0.0001287,2]
[339716667,1727890232320,-300.0,0.0001287,2]
[339716668,1727890232366,-4064.67310528,0.0001287,2]
[339716669,1727890232376,-1500.3044245,0.0001287,2]
[339716670,1727890232387,-361.36554768,0.0001287,2]
[339716671,1727890232398,-300.3,0.0001287,2]
[339716686,1727890238079,-289.394105,0.0001287,2]
[339716687,1727890238111,-3087.4908233,0.0001287,2]
[339716688,1727890238147,-21112.86175311,0.0001287,2]
[339716689,1727890238158,-40317.04450167,0.0001287,2]
[339716690,1727890238265,-1002.3488968,0.0001287,2]
[339716691,1727890238277,-38905.20705492,0.0001287,2]
[339716707,1727890239993,-787.41501045,0.0001287,2]
[339716709,1727890240004,-1237.02681,0.0001287,2]
[339716710,1727890240298,-650.10809178,0.0001287,2]
[339716711,1727890240310,-730.72358893,0.0001287,2]
[339716948,1727890243302,-11578.02151287,0.0001287,2]
[339716953,1727890243346,-608.2955521,0.0001287,2]
[339716954,1727890243383,-1321.65293176,0.0001287,2]
[339716955,1727890243394,-2896.0,0.0001287,2]
[339716956,1727890243419,-1020.49863133,0.0001287,2]
[339716957,1727890243431,-81382.47231566,0.0001287,2]
[339716965,1727890246176,-202.62329744,0.0001287,2]
[339716966,1727890246185,-500.0,0.00012873,2]
[339716967,1727890246194,-500.0,0.00012873,2]
[339716968,1727890246204,-1895.28900256,0.00012899,2]
[339716969,1727890246215,-40013.92011927,0.00012899,2]
[339716970,1727890246224,-11016.20832229,0.00012899,2]
[339716971,1727890246385,-20823.768735,0.00012899,2]
[339718110,1727891432270,-161.18,0.00010959,2]
[339718113,1727891432279,-236.38791311,0.00011266,2]
[339718120,1727891432349,-215.06208689,0.00011266,2]
[339718121,1727891432359,-150.0,0.00011589,2]
[339718122,1727891432368,-150.0,0.00011589,2]
[339718123,1727891432377,-127.33565431,0.00011589,2]
[339718124,1727891432389,-22.66434569,0.00011589,2]
[339718125,1727891432398,-150.0,0.00011589,2]
[339718126,1727891432407,-150.0,0.00011804,2]
[339718127,1727891432416,-150.0,0.00012018,2]
[339718128,1727891432428,-150.0,0.00012233,2]
[339718129,1727891432438,-150.0,0.00012233,2]
[339718130,1727891432447,-150.0,0.00012233,2]
[339718131,1727891432456,-111.03565431,0.00012447,2]
[339718132,1727891432467,-38.96434569,0.00012447,2]
[339718133,1727891432476,-250.0,0.00012546,2]
[339718134,1727891432486,-150.0,0.00012662,2]
[339718136,1727891432495,-994.96504406,0.00012672,2]
[339718138,1727891432511,-5.03495594,0.00012672,2]
[339718139,1727891432520,-499.99,0.00012672,2]
[339718140,1727891432529,-391.07771197,0.00012684,2]
[339718141,1727891432538,-166.2962112,0.000128,2]
[339718142,1727891432547,-150.0,0.00012877,2]
[339718143,1727891432557,-150.0,0.00012877,2]
[339718144,1727891432566,-150.0,0.00012877,2]
[339718146,1727891432576,-219.6,0.00012877,2]
[339718148,1727891432585,-1372.71093522,0.00012889,2]
[339718150,1727891432594,-300.0,0.00012899,2]
[339718152,1727891432604,-300.0,0.00012899,2]
[339718154,1727891432613,-300.0,0.00012899,2]
[339718156,1727891432623,-300.0,0.00012899,2]
[339718157,1727891432632,-300.0,0.00012899,2]
[339718159,1727891432641,-300.0,0.00012899,2]
[339718161,1727891432650,-300.0,0.00012899,2]
[339718163,1727891432659,-300.0,0.00012899,2]
[339718165,1727891432669,-300.0,0.00012899,2]
[339718166,1727891432679,-300.0,0.00012899,2]
[339718167,1727891432689,-300.0,0.00012899,2]
[339718168,1727891432698,-300.0,0.00012899,2]
[339718169,1727891432708,-300.0,0.00012899,2]
[339718170,1727891432717,-300.0,0.00012899,2]
[339718171,1727891432727,-300.0,0.00012899,2]
[339718172,1727891432736,-300.0,0.00012899,2]
[339718173,1727891432746,-41841.26721129,0.00012899,2]
[339718174,1727891432755,-576.17574762,0.00012899,2]
[339718175,1727891432765,-1433.92938976,0.00012899,3]
[339718176,1727891432774,-1433.92938975,0.00012899,3]
[339718177,1727891432783,-522.441,0.00012899,2]
[339718178,1727891432793,-170.529,0.00012899,2]
[339718179,1727891432802,-150.0,0.00012899,2]
[339718180,1727891432811,-150.0,0.00012899,2]
[339718181,1727891432820,-150.0,0.00012899,2]
[339718182,1727891432830,-150.0,0.00012899,2]
[339718183,1727891432839,-245.94602948,0.00012899,2]
[339718184,1727891432848,-110994.74815498,0.000129,2]
[339718185,1727891432860,-656.69375819,0.000129,2]
[339718186,1727891432871,-3702.08686573,0.000129,2]
[339718187,1727891432883,-1266.68343666,0.000129,2]
[339718190,1727891438284,-442.2982451,0.00012873,2]
[339718191,1727891438295,-87.67870281,0.00012873,2]
[339718192,1727891438305,-399250.43085329,0.000129,2]
[339718194,1727891438486,-388.08,0.000129,2]
[339718233,1727891440691,-359687.77879842,0.000129,2]
[339718234,1727891440702,-7900.0844769,0.000129,2]
[339718481,1727891443468,-26218.20943863,0.000129,2]
[339718759,1727891446338,-2195.89994358,0.000129,2]
[339718761,1727891446349,-1233.98,0.000129,2]
[339718773,1727891446535,-27232.81612844,0.000129,2]
[339718774,1727891446547,-3082.95,0.000129,2]
[339718958,1727891601897,200.0,0.000218,120]
[339718959,1727892200575,200.0,0.000218,120]
[339718960,1727892251420,2625.14581953,0.0002,120]
[339718992,1727892631639,-445.4,0.00010393,2]
[339718993,1727892631649,-134.513739,0.00010959,2]
[339718994,1727892631664,-26.656261,0.00010959,2]
[339718995,1727892631674,-250.0,0.00011,2]
[339718996,1727892631683,-150.0,0.00011588,2]
[339718997,1727892631693,-300.0,0.00011588,2]
[339718998,1727892631704,-155.876299,0.00011589,2]
[339718999,1727892631715,-752.8607206,0.00011589,2]
[339719000,1727892631726,-450.0,0.00011589,2]
[339719001,1727892631738,-267.95,0.00011589,2]
[339719002,1727892631763,-328.5,0.00011589,2]
[339719003,1727892631793,-2998.20515077,0.00011589,2]
[339719004,1727892631805,-4807.60507663,0.00011589,2]
[339719032,1727892637969,-1201.07485359,0.00011589,2]
[339719033,1727892637980,-460.04,0.00011589,2]
[339719034,1727892637996,-32966.76603345,0.00011589,2]
[339719042,1727892639574,-804.51239305,0.00011589,2]
[339719043,1727892639761,-2787.36081167,0.00011589,2]
[339719044,1727892639771,-150.0,0.00011589,2]
[339719045,1727892639780,-284.14672273,0.00011589,2]
[339719046,1727892639790,-246.58357932,0.00011589,2]
[339719047,1727892639799,-150.0,0.00011589,2]
[339719048,1727892639809,-168.44385972,0.00011589,2]
[339719049,1727892639818,-195.08676681,0.00011589,2]
[339719050,1727892639827,-150.20135592,0.00011589,2]
[339719051,1727892639836,-256.17612795,0.00011589,2]
[339719052,1727892639846,-152.2575597,0.00011589,2]
[339719053,1727892639855,-150.6633139,0.00011589,2]
[339719054,1727892639865,-244.42361065,0.00011589,2]
[339719055,1727892639874,-153.55666321,0.00011589,2]
[339719056,1727892639884,-500.0,0.00012092,2]
[339719057,1727892639893,-157.99,0.00012177,2]
[339719058,1727892639903,-3800.96,0.00012286,2]
[339719059,1727892639912,-1000.0,0.00012366,2]
[339719060,1727892639922,-191.36,0.00012451,2]
[339719061,1727892639931,-250.0,0.00012487,2]
[339719062,1727892639940,-1500.0,0.00012576,2]
[339719063,1727892639950,-445.4,0.00012657,2]
[339719064,1727892639959,-167.3,0.00012667,2]
[339719065,1727892639969,-320.89,0.00012667,2]
[339719066,1727892639978,-18212.18,0.00012722,2]
[339719067,1727892639987,-420.0,0.00012726,2]
[339719068,1727892639996,-200.0,0.00012817,2]
[339719069,1727892640006,-500.0,0.00012873,2]
[339719070,1727892640016,-500.0,0.00012873,2]
[339719071,1727892640025,-150.0,0.00012877,2]
[339719072,1727892640034,-153.10261842,0.00012877,2]
[339719073,1727892640046,-250.0,0.00012887,2]
[339719074,1727892640056,-171.48637453,0.0001289,2]
[339719075,1727892640065,-499.99,0.00012898,2]
[339719076,1727892640075,-300.0,0.00012899,2]
[339719077,1727892640084,-300.0,0.00012899,2]
[339719078,1727892640093,-300.0,0.00012899,2]
[339719079,1727892640103,-300.0,0.00012899,2]
[339719080,1727892640112,-300.0,0.00012899,2]
[339719081,1727892640122,-300.0,0.00012899,2]
[339719082,1727892640132,-300.0,0.00012899,2]
[339719083,1727892640141,-300.0,0.00012899,2]
[339719084,1727892640151,-300.0,0.00012899,2]
[339719085,1727892640160,-300.0,0.00012899,2]
[339719086,1727892640170,-300.0,0.00012899,2]
[339719087,1727892640179,-300.0,0.00012899,2]
[339719088,1727892640188,-300.0,0.00012899,2]
[339719089,1727892640198,-2273.0,0.00012899,2]
[339719090,1727892640207,-168.44791415,0.00012899,2]
[339719091,1727892640217,-959.36123052,0.00012899,2]
[339719093,1727892640227,-395.47640747,0.00012899,2]
[339719095,1727892640237,-544226.833874,0.000129,2]
[339719097,1727892640249,-4584.09,0.000129,2]
[339719325,1727892642658,-19212.94890564,0.000129,2]
[339719356,1727892642950,-729.9999998,0.000129,2]
[339719359,1727892642963,-85699.57582601,0.000129,2]
[339719361,1727892642976,-5629.68405523,0.000129,2]
[339719363,1727892642989,-3282.0027101,0.000129,2]
[339719365,1727892643001,-715.58487265,0.000129,2]
[339719615,1727892645633,-617.75444676,0.000129,2]
[339719623,1727892645707,-405.50306453,0.000129,2]
[339719630,1727892645773,-259.6406902,0.000129,2]
[339719633,1727892645785,-60123.53566141,0.000129,2]
[339720237,1727892801597,200.0,0.000216,120]
[339721080,1727893716163,425.58,9.549e-05,2]
[339721104,1727893831623,-164.67,0.00010959,2]
[339721105,1727893831632,-1967.68122961,0.0001099,2]
[339721111,1727893831702,-6090.07165026,0.0001099,2]
[339721112,1727893831711,-150.0,0.00010999,2]
[339721113,1727893831720,-2811.15376528,0.00011,2]
[339721114,1727893831774,-1582.70112092,0.00011,2]
[339721115,1727893831786,-1193.8058045,0.00011,2]
[339721116,1727893831850,-1276.33088317,0.00011,2]
[339721117,1727893831919,-6095.22195863,0.00011,2]
[339721118,1727893831930,-318.45,0.00011,2]
[339721168,1727893837687,-995.56100201,0.00011,2]
[339721169,1727893837700,-2705.14880003,0.00011,2]
[339721170,1727893837760,-2630.8,0.00011,2]
[339721171,1727893837771,-14678.35613486,0.00011,2]
[339721172,1727893837840,-14623.75980472,0.00011,2]
[339721173,1727893837918,-2564.44491418,0.00011,2]
[339721174,1727893837930,-18380.08173564,0.00011,2]
[339721185,1727893839747,-490.93547014,0.00011,2]
[339721186,1727893839759,-604.515,0.00011,2]
[339721187,1727893839975,-476392.10206141,0.00011,2]
[339721188,1727893839991,-2430.0,0.00011,2]
[339721199,1727893843039,-21364.43340015,0.00011,2]